[Event "*** Titled Tuesday 3|2 Blitz"]
[Site "Chess.com"]
[Date "2017.05.02"]
[Round "4"]
[White "IIIlllII1llIl"]
[Black "kleinebeer98"]
[Result "0-1"]
[WhiteElo "2547"]
[BlackElo "2465"]
[TimeControl "180+2"]
[EndTime "13:47:01 PDT"]
[Termination "kleinebeer98 won by checkmate"]

1. e4 {[%clk 0:03:02]} 1... e5 {[%clk 0:03:00.2]} 2. Nf3 {[%clk 0:03:03]} 2...
Nc6 {[%clk 0:03:01.1]} 3. Bb5 {[%clk 0:03:04]} 3... f5 {[%clk 0:03:02.6]} 4. Nc3
{[%clk 0:03:03.1]} 4... fxe4 {[%clk 0:03:03.2]} 5. Nxe4 {[%clk 0:03:05]} 5... d5
{[%clk 0:03:03.8]} 6. Nxe5 {[%clk 0:02:28.8]} 6... dxe4 {[%clk 0:03:05.7]} 7.
Qh5+ {[%clk 0:02:17.3]} 7... g6 {[%clk 0:03:05.8]} 8. Nxg6 {[%clk 0:02:16.9]}
8... hxg6 {[%clk 0:02:56.7]} 9. Qxh8 {[%clk 0:02:13]} 9... Be6 {[%clk
0:02:52.8]} 10. Qe5 {[%clk 0:02:02.3]} 10... Kf7 {[%clk 0:02:48.8]} 11. Bxc6
{[%clk 0:01:50.2]} 11... bxc6 {[%clk 0:02:50.7]} 12. Qxe4 {[%clk 0:01:51]} 12...
Nf6 {[%clk 0:02:45.6]} 13. Qe2 {[%clk 0:01:48.6]} 13... Qd5 {[%clk 0:02:42.2]}
14. O-O {[%clk 0:01:43.4]} 14... Bd6 {[%clk 0:02:40.6]} 15. c4 {[%clk
0:01:11.7]} 15... Qd4 {[%clk 0:02:26.6]} 16. d3 {[%clk 0:01:11.8]} 16... Rh8
{[%clk 0:01:51.2]} 17. h3 {[%clk 0:00:59.3]} 17... Bxh3 {[%clk 0:01:26.3]} 18.
Qe3 {[%clk 0:00:10.9]} 18... Qg4 {[%clk 0:00:57.6]} 19. Qg5 {[%clk 0:00:09.7]}
19... Bh2+ {[%clk 0:00:47.9]} 20. Kh1 {[%clk 0:00:10.4]} 20... Bxg2# {[%clk
0:00:49]} 0-1

[Event "*** Titled Tuesday 3|2 Blitz"]
[Site "Chess.com"]
[Date "2017.05.02"]
[Round "4"]
[White "ehrenfeld"]
[Black "gmjoey1"]
[Result "0-1"]
[WhiteElo "2400"]
[BlackElo "2508"]
[TimeControl "180+2"]
[EndTime "13:47:03 PDT"]
[Termination "gmjoey1 won on time"]

1. e4 {[%clk 0:03:02]} 1... c6 {[%clk 0:02:58.8]} 2. d4 {[%clk 0:03:02.3]} 2...
d5 {[%clk 0:02:59.7]} 3. exd5 {[%clk 0:03:03.5]} 3... cxd5 {[%clk 0:02:59.8]} 4.
Bd3 {[%clk 0:03:04.8]} 4... Nc6 {[%clk 0:02:59.7]} 5. c3 {[%clk 0:03:05.8]} 5...
Qc7 {[%clk 0:03:01]} 6. Bg5 {[%clk 0:03:06.6]} 6... e6 {[%clk 0:02:55.2]} 7. Nf3
{[%clk 0:03:06.3]} 7... Bd6 {[%clk 0:02:55.6]} 8. Nbd2 {[%clk 0:03:06.3]} 8...
Nge7 {[%clk 0:02:54.6]} 9. Bh4 {[%clk 0:03:04.9]} 9... Ng6 {[%clk 0:02:52.5]}
10. Bg3 {[%clk 0:03:05.6]} 10... Nf4 {[%clk 0:02:52.9]} 11. Bxf4 {[%clk
0:03:06.1]} 11... Bxf4 {[%clk 0:02:52.7]} 12. O-O {[%clk 0:03:03.3]} 12... O-O
{[%clk 0:02:52.2]} 13. g3 {[%clk 0:02:50.7]} 13... Bh6 {[%clk 0:02:51.5]} 14.
Re1 {[%clk 0:02:49.1]} 14... Bd7 {[%clk 0:02:51]} 15. Nf1 {[%clk 0:02:47.4]}
15... Rab8 {[%clk 0:02:46]} 16. Ne3 {[%clk 0:02:46]} 16... g6 {[%clk 0:02:46.1]}
17. Ng4 {[%clk 0:02:43.8]} 17... Bg7 {[%clk 0:02:46.8]} 18. Qd2 {[%clk
0:02:23.1]} 18... h5 {[%clk 0:02:40.1]} 19. Nge5 {[%clk 0:02:20.6]} 19... Be8
{[%clk 0:02:32.4]} 20. Qf4 {[%clk 0:02:13.9]} 20... Rc8 {[%clk 0:02:26.8]} 21.
Re2 {[%clk 0:02:05.6]} 21... Nxe5 {[%clk 0:02:26.4]} 22. Nxe5 {[%clk 0:02:01.7]}
22... b5 {[%clk 0:02:26.5]} 23. a3 {[%clk 0:02:00]} 23... a5 {[%clk 0:02:26.6]}
24. Rae1 {[%clk 0:01:45.8]} 24... Qb6 {[%clk 0:02:25.9]} 25. Nf3 {[%clk
0:01:37.4]} 25... b4 {[%clk 0:02:21.2]} 26. cxb4 {[%clk 0:01:34.5]} 26... axb4
{[%clk 0:02:23.1]} 27. axb4 {[%clk 0:00:42.8]} 27... Qxb4 {[%clk 0:02:22.4]} 28.
Qe3 {[%clk 0:00:26.8]} 28... Bb5 {[%clk 0:02:15.2]} 29. Bxb5 {[%clk 0:00:24.3]}
29... Qxb5 {[%clk 0:02:17.1]} 30. h3 {[%clk 0:00:20.9]} 30... Rc4 {[%clk
0:02:09.1]} 31. g4 {[%clk 0:00:21.3]} 31... hxg4 {[%clk 0:02:08.6]} 32. hxg4
{[%clk 0:00:22]} 32... Rb4 {[%clk 0:02:09.8]} 33. Rb1 {[%clk 0:00:13.6]} 33...
Rb3 {[%clk 0:02:08.4]} 34. Qf4 {[%clk 0:00:14.4]} 34... Qd3 {[%clk 0:02:08.6]}
0-1

[Event "*** Titled Tuesday 3|2 Blitz"]
[Site "Chess.com"]
[Date "2017.05.02"]
[Round "4"]
[White "Lawliet64"]
[Black "heartofatiger"]
[Result "1-0"]
[WhiteElo "2028"]
[BlackElo "1688"]
[TimeControl "180+2"]
[EndTime "13:47:41 PDT"]
[Termination "Lawliet64 won by resignation"]

1. e4 {[%clk 0:02:58.7]} 1... c5 {[%clk 0:03:00.1]} 2. Nc3 {[%clk 0:02:58]} 2...
e6 {[%clk 0:03:00.5]} 3. Bc4 {[%clk 0:02:56.8]} 3... a6 {[%clk 0:03:01.4]} 4. d3
{[%clk 0:02:45.8]} 4... Nc6 {[%clk 0:03:01.5]} 5. f4 {[%clk 0:02:45.3]} 5... b5
{[%clk 0:03:01.9]} 6. Bb3 {[%clk 0:02:45.2]} 6... Nd4 {[%clk 0:03:02.9]} 7. Nf3
{[%clk 0:02:45.3]} 7... Nxb3 {[%clk 0:03:03.4]} 8. axb3 {[%clk 0:02:45.5]} 8...
Bb7 {[%clk 0:03:05]} 9. O-O {[%clk 0:02:45.8]} 9... Nf6 {[%clk 0:03:05]} 10. Qe1
{[%clk 0:02:47.2]} 10... Be7 {[%clk 0:03:05.9]} 11. Bd2 {[%clk 0:02:44.6]} 11...
d5 {[%clk 0:03:06.3]} 12. e5 {[%clk 0:02:44.6]} 12... Nd7 {[%clk 0:03:06.5]} 13.
Qg3 {[%clk 0:02:44.9]} 13... g6 {[%clk 0:03:07.2]} 14. Qh3 {[%clk 0:02:44.3]}
14... Qc7 {[%clk 0:03:01.2]} 15. Rae1 {[%clk 0:02:45.6]} 15... b4 {[%clk
0:03:00.4]} 16. Ne2 {[%clk 0:02:43.9]} 16... d4 {[%clk 0:02:57.8]} 17. g4 {[%clk
0:02:35.8]} 17... h5 {[%clk 0:02:52.9]} 18. Ng3 {[%clk 0:02:25.3]} 18... O-O-O
{[%clk 0:02:50.5]} 19. gxh5 {[%clk 0:02:24.2]} 19... gxh5 {[%clk 0:02:50.9]} 20.
Kf2 {[%clk 0:02:16.9]} 20... h4 {[%clk 0:02:51]} 21. Ne4 {[%clk 0:02:16.6]}
21... Nb6 {[%clk 0:02:45.1]} 22. Ke2 {[%clk 0:02:10.8]} 22... Nd5 {[%clk
0:02:45.9]} 23. Kd1 {[%clk 0:02:10.5]} 23... a5 {[%clk 0:02:45.8]} 24. f5 {[%clk
0:02:10.4]} 24... Qc6 {[%clk 0:02:35.2]} 25. fxe6 {[%clk 0:01:51.3]} 25... fxe6
{[%clk 0:02:33]} 26. Nfg5 {[%clk 0:01:52.8]} 26... Bxg5 {[%clk 0:02:08.2]} 27.
Nxg5 {[%clk 0:01:50.9]} 27... Rde8 {[%clk 0:02:04.8]} 28. Nf7 {[%clk 0:01:49.5]}
28... Kb8 {[%clk 0:02:03.2]} 29. Nd6 {[%clk 0:01:50.9]} 29... Re7 {[%clk
0:01:56.5]} 30. Bg5 {[%clk 0:01:47.6]} 30... Rg7 {[%clk 0:01:47.8]} 31. Bf6
{[%clk 0:01:22.7]} 31... Nxf6 {[%clk 0:01:46.5]} 32. exf6 {[%clk 0:01:23.9]}
32... Rg2 {[%clk 0:01:39.2]} 33. Qxe6 {[%clk 0:01:01.5]} 33... Rd8 {[%clk
0:01:20.6]} 34. Nxb7 {[%clk 0:00:59.4]} 34... Qxe6 {[%clk 0:01:11.6]} 35. Rxe6
{[%clk 0:00:56.7]} 35... Kxb7 {[%clk 0:01:13.2]} 36. f7 {[%clk 0:00:58.1]} 1-0

[Event "*** Titled Tuesday 3|2 Blitz"]
[Site "Chess.com"]
[Date "2017.05.02"]
[Round "4"]
[White "supertfc"]
[Black "sorito"]
[Result "0-1"]
[WhiteElo "2344"]
[BlackElo "2388"]
[TimeControl "180+2"]
[EndTime "13:47:45 PDT"]
[Termination "sorito won by resignation"]

1. e4 {[%clk 0:03:02]} 1... c5 {[%clk 0:03:01]} 2. Nf3 {[%clk 0:02:57.3]} 2...
a6 {[%clk 0:03:02.5]} 3. c3 {[%clk 0:02:57.7]} 3... e6 {[%clk 0:03:02.7]} 4. d4
{[%clk 0:02:58.1]} 4... d5 {[%clk 0:03:03.9]} 5. e5 {[%clk 0:02:58.9]} 5... Nc6
{[%clk 0:03:04.3]} 6. Bd3 {[%clk 0:02:57.6]} 6... Bd7 {[%clk 0:03:05.4]} 7. a3
{[%clk 0:02:45.8]} 7... Rc8 {[%clk 0:02:55.5]} 8. O-O {[%clk 0:02:42.8]} 8...
cxd4 {[%clk 0:02:41.6]} 9. cxd4 {[%clk 0:02:42.7]} 9... Qb6 {[%clk 0:02:42.7]}
10. Bc2 {[%clk 0:02:32.9]} 10... Na5 {[%clk 0:02:38.7]} 11. Nbd2 {[%clk
0:02:10.9]} 11... Bb5 {[%clk 0:02:35.3]} 12. Re1 {[%clk 0:02:09.5]} 12... Nc4
{[%clk 0:02:26.2]} 13. Nxc4 {[%clk 0:02:04.5]} 13... Bxc4 {[%clk 0:02:20.9]} 14.
Ng5 {[%clk 0:01:40.8]} 14... Ne7 {[%clk 0:02:14.9]} 15. Nxh7 {[%clk 0:01:37]}
15... Rxh7 {[%clk 0:02:06.1]} 16. Bxh7 {[%clk 0:01:35.9]} 16... g6 {[%clk
0:02:07.6]} 17. Bg5 {[%clk 0:01:19.5]} 17... Nf5 {[%clk 0:01:47.3]} 18. Be3
{[%clk 0:00:36.8]} 18... Be7 {[%clk 0:01:36.2]} 19. Rc1 {[%clk 0:00:31.5]} 19...
Kd7 {[%clk 0:01:37.1]} 20. Qf3 {[%clk 0:00:18.7]} 20... Rh8 {[%clk 0:01:31.7]}
21. g4 {[%clk 0:00:19.5]} 21... Nxe3 {[%clk 0:01:30.7]} 22. fxe3 {[%clk
0:00:05.2]} 22... Rxh7 {[%clk 0:01:31]} 23. b4 {[%clk 0:00:06]} 23... Bg5 {[%clk
0:01:28]} 24. Rc3 {[%clk 0:00:04.9]} 24... Qd8 {[%clk 0:01:28.8]} 25. Rec1
{[%clk 0:00:03.2]} 25... b5 {[%clk 0:01:29.7]} 26. a4 {[%clk 0:00:03.8]} 26...
Qb6 {[%clk 0:01:24]} 27. axb5 {[%clk 0:00:04.2]} 27... Qxb5 {[%clk 0:01:24.9]}
28. Ra3 {[%clk 0:00:03.2]} 28... Bd8 {[%clk 0:01:21.8]} 29. Rb1 {[%clk
0:00:02.9]} 29... Be7 {[%clk 0:01:17.9]} 30. Qd1 {[%clk 0:00:03.5]} 30... Bxb4
{[%clk 0:01:18.5]} 31. Raa1 {[%clk 0:00:03.2]} 31... a5 {[%clk 0:01:19.5]} 32.
Qa4 {[%clk 0:00:03.9]} 32... Qxa4 {[%clk 0:01:20.4]} 33. Rxa4 {[%clk 0:00:05.8]}
33... Kc6 {[%clk 0:01:19.7]} 34. Raa1 {[%clk 0:00:06.2]} 34... Rh4 {[%clk
0:01:20]} 0-1

[Event "*** Titled Tuesday 3|2 Blitz"]
[Site "Chess.com"]
[Date "2017.05.02"]
[Round "4"]
[White "XiaoKangZhong"]
[Black "Quiet_Desperation"]
[Result "0-1"]
[WhiteElo "2003"]
[BlackElo "2173"]
[TimeControl "180+2"]
[EndTime "13:48:12 PDT"]
[Termination "Quiet_Desperation won by checkmate"]

1. e4 {[%clk 0:02:38.6]} 1... Nc6 {[%clk 0:02:59.6]} 2. d4 {[%clk 0:02:37.4]}
2... d5 {[%clk 0:03:00.7]} 3. exd5 {[%clk 0:02:37.5]} 3... Qxd5 {[%clk 0:02:59]}
4. Nc3 {[%clk 0:02:38.3]} 4... Qxd4 {[%clk 0:02:58.4]} 5. Be3 {[%clk 0:02:33.5]}
5... Qxd1+ {[%clk 0:02:55.2]} 6. Rxd1 {[%clk 0:02:33.8]} 6... Bd7 {[%clk
0:02:45.7]} 7. Nd5 {[%clk 0:02:30.8]} 7... O-O-O {[%clk 0:02:46.4]} 8. Bb5
{[%clk 0:02:23.5]} 8... e6 {[%clk 0:02:45.1]} 9. Nc3 {[%clk 0:02:23.7]} 9... Nf6
{[%clk 0:02:41.7]} 10. a4 {[%clk 0:02:21.3]} 10... Bb4 {[%clk 0:02:42]} 11. Ne2
{[%clk 0:02:19.9]} 11... a6 {[%clk 0:02:39.6]} 12. Bd3 {[%clk 0:02:18.7]} 12...
Ng4 {[%clk 0:02:37.1]} 13. Bd2 {[%clk 0:02:16.7]} 13... Nge5 {[%clk 0:02:25]}
14. O-O {[%clk 0:02:16.2]} 14... Nxd3 {[%clk 0:02:25.9]} 15. cxd3 {[%clk
0:02:16.8]} 15... Ne5 {[%clk 0:02:17.3]} 16. Be1 {[%clk 0:02:04.7]} 16... Bc6
{[%clk 0:02:13.1]} 17. d4 {[%clk 0:02:02.5]} 17... Nc4 {[%clk 0:02:10.9]} 18. b3
{[%clk 0:02:01.3]} 18... Nd6 {[%clk 0:02:11.2]} 19. Nb5 {[%clk 0:01:51.6]} 19...
Bxb5 {[%clk 0:02:01.4]} 20. axb5 {[%clk 0:01:49]} 20... Bxe1 {[%clk 0:02:02.2]}
21. bxa6 {[%clk 0:01:45.7]} 21... Bb4 {[%clk 0:02:00.4]} 22. a7 {[%clk
0:01:45.6]} 22... Kd7 {[%clk 0:02:01.8]} 23. Nf4 {[%clk 0:01:40.3]} 23... Ra8
{[%clk 0:01:58.9]} 24. Ra1 {[%clk 0:01:39.7]} 24... Nc8 {[%clk 0:01:52.9]} 25.
Nd3 {[%clk 0:01:39.6]} 25... Bd6 {[%clk 0:01:53.3]} 26. Ra2 {[%clk 0:01:28.8]}
26... Rxa7 {[%clk 0:01:53.9]} 27. Rfa1 {[%clk 0:01:27.6]} 27... Rxa2 {[%clk
0:01:54.4]} 28. Rxa2 {[%clk 0:01:27.7]} 28... Nb6 {[%clk 0:01:53.4]} 29. Nc5+
{[%clk 0:01:27.2]} 29... Bxc5 {[%clk 0:01:53.4]} 30. dxc5 {[%clk 0:01:29.1]}
30... Nd5 {[%clk 0:01:54.7]} 31. Rd2 {[%clk 0:01:29.2]} 31... Kc6 {[%clk
0:01:55.8]} 32. Rc2 {[%clk 0:01:30]} 32... Ra8 {[%clk 0:01:55.5]} 33. h4 {[%clk
0:01:30]} 33... Ra3 {[%clk 0:01:55.2]} 34. Kh2 {[%clk 0:01:29.1]} 34... Rxb3
{[%clk 0:01:56.3]} 35. f3 {[%clk 0:01:30.4]} 35... Rc3 {[%clk 0:01:57.2]} 36.
Rb2 {[%clk 0:01:30]} 36... Rxc5 {[%clk 0:01:57.7]} 37. Kg3 {[%clk 0:01:31.7]}
37... Rc4 {[%clk 0:01:55]} 38. h5 {[%clk 0:01:28.8]} 38... h6 {[%clk 0:01:55.3]}
39. Kf2 {[%clk 0:01:22.9]} 39... b5 {[%clk 0:01:55.6]} 40. g4 {[%clk 0:01:23.7]}
40... Nf4 {[%clk 0:01:55.7]} 41. Kg3 {[%clk 0:01:24.7]} 41... Nd5 {[%clk
0:01:54.6]} 42. Ra2 {[%clk 0:01:20.6]} 42... b4 {[%clk 0:01:54.9]} 43. Ra6+
{[%clk 0:01:20.2]} 43... Nb6 {[%clk 0:01:55.8]} 44. Ra2 {[%clk 0:01:17.7]} 44...
Kb5 {[%clk 0:01:56.8]} 45. f4 {[%clk 0:01:16.3]} 45... b3 {[%clk 0:01:57.9]} 46.
Rb2 {[%clk 0:01:16.2]} 46... Kb4 {[%clk 0:01:59.3]} 47. g5 {[%clk 0:01:16.6]}
47... hxg5 {[%clk 0:01:59.4]} 48. fxg5 {[%clk 0:01:17.6]} 48... Rc5 {[%clk
0:01:59.5]} 49. Kh4 {[%clk 0:01:15.3]} 49... Kc3 {[%clk 0:02:00.2]} 50. Rb1
{[%clk 0:01:14.2]} 50... b2 {[%clk 0:02:00.9]} 51. h6 {[%clk 0:01:14.8]} 51...
gxh6 {[%clk 0:02:01.8]} 52. gxh6 {[%clk 0:01:15.8]} 52... Rd5 {[%clk 0:02:01.5]}
53. h7 {[%clk 0:01:13.2]} 53... Rd8 {[%clk 0:02:02.6]} 54. Rg1 {[%clk
0:01:05.4]} 54... Rh8 {[%clk 0:01:59.9]} 55. Rg3+ {[%clk 0:01:01.5]} 55... Kc2
{[%clk 0:02:00.3]} 56. Rg2+ {[%clk 0:01:02.6]} 56... Kb3 {[%clk 0:02:01.7]} 57.
Rg3+ {[%clk 0:01:03.4]} 57... Ka2 {[%clk 0:02:03]} 58. Rg7 {[%clk 0:01:03.3]}
58... b1=Q {[%clk 0:02:02.9]} 59. Kg5 {[%clk 0:01:04.5]} 59... Rxh7 {[%clk
0:02:04]} 60. Rxh7 {[%clk 0:01:05.4]} 60... Qxh7 {[%clk 0:02:04.8]} 61. Kf6
{[%clk 0:01:06.9]} 61... Qf5+ {[%clk 0:02:06.6]} 62. Ke7 {[%clk 0:01:08]} 62...
e5 {[%clk 0:02:08.5]} 63. Kf8 {[%clk 0:01:08.1]} 63... e4 {[%clk 0:02:10.1]} 64.
Kg7 {[%clk 0:01:10]} 64... e3 {[%clk 0:02:11.6]} 65. Kf8 {[%clk 0:01:11.9]}
65... e2 {[%clk 0:02:13.1]} 66. Kg7 {[%clk 0:01:13.8]} 66... e1=Q {[%clk
0:02:13.1]} 67. Kf8 {[%clk 0:01:15.7]} 67... Nd7+ {[%clk 0:02:10.8]} 68. Kg7
{[%clk 0:01:17.6]} 68... Qg3+ {[%clk 0:02:11]} 69. Kh8 {[%clk 0:01:18.4]} 69...
Qh4+ {[%clk 0:02:09.7]} 70. Kg7 {[%clk 0:01:20.3]} 70... Qhg4+ {[%clk
0:02:09.3]} 71. Kh8 {[%clk 0:01:22.2]} 71... Qgh5+ {[%clk 0:02:09.3]} 72. Kg7
{[%clk 0:01:24.1]} 72... Qhg6+ {[%clk 0:02:10]} 73. Kh8 {[%clk 0:01:26]} 73...
Qfh5# {[%clk 0:02:08.2]} 0-1

[Event "*** Titled Tuesday 3|2 Blitz"]
[Site "Chess.com"]
[Date "2017.05.02"]
[Round "4"]
[White "Alexander_Donchenko"]
[Black "Rikikits"]
[Result "0-1"]
[WhiteElo "2505"]
[BlackElo "2578"]
[TimeControl "180+2"]
[EndTime "13:48:32 PDT"]
[Termination "Rikikits won by resignation"]

1. e4 {[%clk 0:03:02]} 1... c5 {[%clk 0:03:00.5]} 2. Nf3 {[%clk 0:03:03.3]} 2...
Nc6 {[%clk 0:03:02.2]} 3. Bb5 {[%clk 0:03:03.9]} 3... e6 {[%clk 0:03:03.2]} 4.
Bxc6 {[%clk 0:03:04.3]} 4... bxc6 {[%clk 0:03:05.1]} 5. d3 {[%clk 0:03:04.4]}
5... Ne7 {[%clk 0:03:06.2]} 6. O-O {[%clk 0:03:05.4]} 6... f6 {[%clk 0:03:07.3]}
7. Be3 {[%clk 0:03:03.6]} 7... Ng6 {[%clk 0:03:07.7]} 8. Na3 {[%clk 0:02:56]}
8... d5 {[%clk 0:03:08.5]} 9. c4 {[%clk 0:02:55.4]} 9... d4 {[%clk 0:03:09.6]}
10. Bd2 {[%clk 0:02:55.5]} 10... Bd6 {[%clk 0:03:09.9]} 11. Ne1 {[%clk
0:02:54.4]} 11... e5 {[%clk 0:03:06.5]} 12. Nac2 {[%clk 0:02:54.5]} 12... O-O
{[%clk 0:03:07.1]} 13. b4 {[%clk 0:02:54.6]} 13... f5 {[%clk 0:03:08.5]} 14.
bxc5 {[%clk 0:02:55]} 14... Bxc5 {[%clk 0:03:10.4]} 15. Bb4 {[%clk 0:02:46.7]}
15... Bxb4 {[%clk 0:03:02.5]} 16. Nxb4 {[%clk 0:02:48.6]} 16... fxe4 {[%clk
0:02:59.4]} 17. dxe4 {[%clk 0:02:49.6]} 17... a5 {[%clk 0:02:47.3]} 18. Nbd3
{[%clk 0:02:47.4]} 18... Qh4 {[%clk 0:02:43.9]} 19. Nf3 {[%clk 0:02:44.2]} 19...
Qe7 {[%clk 0:02:25.7]} 20. Nd2 {[%clk 0:02:37.9]} 20... Bd7 {[%clk 0:02:07.7]}
21. Rb1 {[%clk 0:02:38.3]} 21... Qa3 {[%clk 0:02:02.5]} 22. Qb3 {[%clk 0:02:38]}
22... Qd6 {[%clk 0:01:55.6]} 23. g3 {[%clk 0:02:20.7]} 23... Kh8 {[%clk
0:01:54.7]} 24. Qb6 {[%clk 0:02:15.2]} 24... Bh3 {[%clk 0:01:54.8]} 25. Rfe1
{[%clk 0:02:13.1]} 25... Nh4 {[%clk 0:01:43.2]} 26. Qc5 {[%clk 0:02:13.5]} 26...
Qf6 {[%clk 0:01:44.4]} 27. f4 {[%clk 0:01:44.9]} 27... exf4 {[%clk 0:01:43.3]}
28. Nxf4 {[%clk 0:01:43.3]} 28... Bg4 {[%clk 0:01:20.1]} 29. Rb7 {[%clk
0:01:27.9]} 29... Ng6 {[%clk 0:01:14.2]} 30. e5 {[%clk 0:01:24.6]} 30... Qg5
{[%clk 0:01:03]} 31. Ne4 {[%clk 0:01:19.9]} 31... Qh6 {[%clk 0:00:56.7]} 32. Nd3
{[%clk 0:00:59.3]} 32... Bh3 {[%clk 0:00:52.6]} 33. Qxd4 {[%clk 0:00:53.5]}
33... Rad8 {[%clk 0:00:52.5]} 34. Nd6 {[%clk 0:00:53.5]} 34... Qd2 {[%clk
0:00:48.7]} 35. Qe4 {[%clk 0:00:29.1]} 35... Nxe5 {[%clk 0:00:49.2]} 36. Rb2
{[%clk 0:00:12.2]} 36... Qxd3 {[%clk 0:00:42.2]} 37. Qxe5 {[%clk 0:00:10.6]}
37... Qf1+ {[%clk 0:00:42.1]} 0-1

[Event "*** Titled Tuesday 3|2 Blitz"]
[Site "Chess.com"]
[Date "2017.05.02"]
[Round "4"]
[White "martinique24"]
[Black "Saitama_Hero"]
[Result "1-0"]
[WhiteElo "2437"]
[BlackElo "2269"]
[TimeControl "180+2"]
[EndTime "13:48:48 PDT"]
[Termination "martinique24 won by resignation"]

1. e4 {[%clk 0:02:57.8]} 1... d6 {[%clk 0:02:58.5]} 2. d4 {[%clk 0:02:58.5]}
2... Nf6 {[%clk 0:02:56.3]} 3. Nc3 {[%clk 0:02:59.1]} 3... c6 {[%clk 0:02:57.7]}
4. f4 {[%clk 0:02:59.3]} 4... Qa5 {[%clk 0:02:56.3]} 5. Bd3 {[%clk 0:03:00.3]}
5... e5 {[%clk 0:02:56.7]} 6. Nf3 {[%clk 0:03:01.6]} 6... Bg4 {[%clk 0:02:56.8]}
7. Be3 {[%clk 0:03:00.1]} 7... Nbd7 {[%clk 0:02:56.9]} 8. O-O {[%clk 0:02:58.5]}
8... Be7 {[%clk 0:02:58.1]} 9. h3 {[%clk 0:02:59.9]} 9... Bxf3 {[%clk
0:02:58.3]} 10. Qxf3 {[%clk 0:03:01.8]} 10... exf4 {[%clk 0:02:58.9]} 11. Bxf4
{[%clk 0:03:00.6]} 11... g5 {[%clk 0:02:59.2]} 12. Bh2 {[%clk 0:02:53.9]} 12...
h5 {[%clk 0:02:58.8]} 13. e5 {[%clk 0:02:48.2]} 13... dxe5 {[%clk 0:02:58]} 14.
dxe5 {[%clk 0:02:48.3]} 14... g4 {[%clk 0:02:57.6]} 15. Qf5 {[%clk 0:02:36.8]}
15... Nd5 {[%clk 0:02:16.2]} 16. Qxf7+ {[%clk 0:02:26.7]} 16... Kd8 {[%clk
0:02:16.5]} 17. Nxd5 {[%clk 0:01:56.9]} 17... cxd5 {[%clk 0:02:15.9]} 18. e6
{[%clk 0:01:53.6]} 18... Nc5 {[%clk 0:02:03.2]} 19. Be5 {[%clk 0:01:45.2]} 19...
Rf8 {[%clk 0:02:00.3]} 20. Qxf8+ {[%clk 0:01:31.6]} 20... Bxf8 {[%clk
0:01:59.3]} 21. Rxf8+ {[%clk 0:01:33.5]} 21... Ke7 {[%clk 0:02:00.6]} 22. Rxa8
{[%clk 0:01:33.3]} 22... gxh3 {[%clk 0:01:39.2]} 23. gxh3 {[%clk 0:01:28.1]}
23... Qd2 {[%clk 0:01:31.7]} 24. Bd4 {[%clk 0:01:12.8]} 24... Nxd3 {[%clk
0:01:18.8]} 25. cxd3 {[%clk 0:01:12.1]} 25... Qxd3 {[%clk 0:01:20.7]} 26. Bc5+
{[%clk 0:01:06.8]} 26... Kxe6 {[%clk 0:01:19.5]} 27. Re1+ {[%clk 0:01:05]} 27...
Kd7 {[%clk 0:01:20.1]} 28. Rg8 {[%clk 0:00:53.5]} 28... Qxh3 {[%clk 0:00:58.7]}
29. a4 {[%clk 0:00:52.4]} 29... b6 {[%clk 0:00:48.6]} 30. Bf2 {[%clk 0:00:38.5]}
30... Kc6 {[%clk 0:00:44.1]} 31. Rc1+ {[%clk 0:00:35.6]} 31... Kb7 {[%clk
0:00:42.5]} 32. a5 {[%clk 0:00:36.1]} 32... Qe6 {[%clk 0:00:38.3]} 33. Rg7+
{[%clk 0:00:34.7]} 33... Ka6 {[%clk 0:00:37.9]} 34. axb6 {[%clk 0:00:35.5]}
34... axb6 {[%clk 0:00:39.1]} 35. Rcc7 {[%clk 0:00:18.9]} 35... h4 {[%clk
0:00:19.1]} 36. Rb7 {[%clk 0:00:16.9]} 36... h3 {[%clk 0:00:17.7]} 37. Rxb6+
{[%clk 0:00:16.6]} 37... Qxb6 {[%clk 0:00:19.6]} 38. Bxb6 {[%clk 0:00:17]} 1-0

[Event "*** Titled Tuesday 3|2 Blitz"]
[Site "Chess.com"]
[Date "2017.05.02"]
[Round "4"]
[White "Spartakus1975"]
[Black "MagnusCarlsen"]
[Result "0-1"]
[WhiteElo "2590"]
[BlackElo "2977"]
[TimeControl "180+2"]
[EndTime "13:48:52 PDT"]
[Termination "MagnusCarlsen won by checkmate"]

1. e4 {[%clk 0:02:59.1]} 1... e5 {[%clk 0:02:51.4]} 2. Nf3 {[%clk 0:02:59.9]}
2... Nc6 {[%clk 0:02:52.4]} 3. Bb5 {[%clk 0:03:01.4]} 3... Nf6 {[%clk
0:02:52.4]} 4. O-O {[%clk 0:03:02.1]} 4... Nxe4 {[%clk 0:02:53.6]} 5. Re1 {[%clk
0:02:56.1]} 5... Nd6 {[%clk 0:02:53.3]} 6. Nxe5 {[%clk 0:02:53.3]} 6... Be7
{[%clk 0:02:54.6]} 7. Bf1 {[%clk 0:02:46.6]} 7... Nf5 {[%clk 0:02:51.1]} 8. c3
{[%clk 0:02:42.4]} 8... Nxe5 {[%clk 0:02:45.4]} 9. Rxe5 {[%clk 0:02:42.4]} 9...
d6 {[%clk 0:02:46.8]} 10. Re1 {[%clk 0:02:43.2]} 10... O-O {[%clk 0:02:47.2]}
11. d4 {[%clk 0:02:44.4]} 11... d5 {[%clk 0:02:26]} 12. Bf4 {[%clk 0:02:40.1]}
12... Bd6 {[%clk 0:02:25.7]} 13. Bxd6 {[%clk 0:02:37.9]} 13... Nxd6 {[%clk
0:02:27.6]} 14. Nd2 {[%clk 0:02:37.9]} 14... Bf5 {[%clk 0:02:26.5]} 15. Qf3
{[%clk 0:02:37.9]} 15... Qg5 {[%clk 0:02:19.5]} 16. Qe3 {[%clk 0:02:26.4]} 16...
Qxe3 {[%clk 0:02:13.8]} 17. Rxe3 {[%clk 0:02:26.3]} 17... Rfe8 {[%clk
0:02:11.8]} 18. Rae1 {[%clk 0:02:26.7]} 18... Rxe3 {[%clk 0:02:12.8]} 19. Rxe3
{[%clk 0:02:28.3]} 19... Kf8 {[%clk 0:02:14.1]} 20. f3 {[%clk 0:02:29]} 20... a5
{[%clk 0:02:13.4]} 21. g4 {[%clk 0:02:22.4]} 21... Bg6 {[%clk 0:02:11.6]} 22.
Kf2 {[%clk 0:02:21.8]} 22... a4 {[%clk 0:02:12]} 23. a3 {[%clk 0:02:22.7]} 23...
b5 {[%clk 0:02:08.9]} 24. f4 {[%clk 0:02:16.4]} 24... Bc2 {[%clk 0:02:07.1]} 25.
Bg2 {[%clk 0:02:13.2]} 25... c6 {[%clk 0:02:07]} 26. f5 {[%clk 0:02:10.8]} 26...
Rb8 {[%clk 0:02:06.6]} 27. Ke1 {[%clk 0:01:23.1]} 27... h6 {[%clk 0:01:04.1]}
28. h3 {[%clk 0:01:22.5]} 28... g6 {[%clk 0:00:59.9]} 29. fxg6 {[%clk
0:01:21.1]} 29... fxg6 {[%clk 0:00:59.3]} 30. Nf3 {[%clk 0:01:14.1]} 30... Nc4
{[%clk 0:00:54.3]} 31. Re2 {[%clk 0:01:11.7]} 31... Bd3 {[%clk 0:00:53.7]} 32.
Rf2 {[%clk 0:01:12.5]} 32... Re8+ {[%clk 0:00:52.5]} 33. Kd1 {[%clk 0:01:05.8]}
33... Kg7 {[%clk 0:00:53]} 34. Kc1 {[%clk 0:00:58.2]} 34... Re3 {[%clk
0:00:51.9]} 35. Bf1 {[%clk 0:00:51.3]} 35... Bxf1 {[%clk 0:00:51.7]} 36. Rxf1
{[%clk 0:00:52]} 36... Re2 {[%clk 0:00:53.4]} 37. Re1 {[%clk 0:00:39.3]} 37...
Rxb2 {[%clk 0:00:42.1]} 38. Re7+ {[%clk 0:00:38.1]} 38... Kf8 {[%clk 0:00:43.5]}
39. Rc7 {[%clk 0:00:37.7]} 39... Rb3 {[%clk 0:00:44.6]} 40. Nh4 {[%clk
0:00:35.2]} 40... Rxc3+ {[%clk 0:00:44.3]} 41. Kb1 {[%clk 0:00:34.5]} 41...
Nxa3+ {[%clk 0:00:44.5]} 42. Kb2 {[%clk 0:00:34.9]} 42... b4 {[%clk 0:00:45.7]}
43. Nxg6+ {[%clk 0:00:34.7]} 43... Ke8 {[%clk 0:00:47]} 44. Nf4 {[%clk
0:00:20.9]} 44... Rc2+ {[%clk 0:00:46.5]} 45. Ka1 {[%clk 0:00:20.1]} 45... b3
{[%clk 0:00:48.1]} 46. Ne6 {[%clk 0:00:16.9]} 46... Ra2# {[%clk 0:00:47.5]} 0-1